[Event "Titled Tuesday Blitz June 28 Late 2022"]
[White "Dardha, Daniel"]
[Black "Bluebaum, Matthias"]
[WhiteFideId "240990"]
[BlackFideId "24651516"]
[WhiteElo "2482"]
[BlackElo "2556"]
[Result "0-1"]
[Round "09"]
[TimeControl "180+1"]
[Date "2022.06.28"]
[WhiteClock "0:00:02"]
[BlackClock "0:00:08"]

1. e4 {[%clk 0:03:00]}  c6 {[%clk 0:02:56]} 2. Nf3 {[%clk 0:02:59]}  d5 {[%clk 0:02:57]} 3. d3 {[%clk 0:03:00]}  dxe4 {[%clk 0:02:55]} 4. dxe4 {[%clk 0:03:01]}  Qxd1+ {[%clk 0:02:55]} 5. Kxd1 {[%clk 0:03:02]}  Nf6 {[%clk 0:02:56]} 6. Nfd2 {[%clk 0:03:02]}  g5 {[%clk 0:02:55]} 7. a4 {[%clk 0:03:02]}  g4 {[%clk 0:02:53]} 8. Nc3 {[%clk 0:03:00]}  h5 {[%clk 0:02:52]} 9. h3 {[%clk 0:03:00]}  gxh3 {[%clk 0:02:51]} 10. gxh3 {[%clk 0:03:01]}  Bh6 {[%clk 0:02:50]} 11. Nc4 {[%clk 0:02:59]}  Bxc1 {[%clk 0:02:49]} 12. Kxc1 {[%clk 0:02:59]}  Be6 {[%clk 0:02:49]} 13. Rg1 {[%clk 0:02:55]}  Nbd7 {[%clk 0:02:45]} 14. Kd2 {[%clk 0:02:55]}  O-O-O {[%clk 0:02:45]} 15. Ke3 {[%clk 0:02:55]}  Rhg8 {[%clk 0:02:37]} 16. Rxg8 {[%clk 0:02:31]}  Rxg8 {[%clk 0:02:38]} 17. f3 {[%clk 0:02:14]}  Rg1 {[%clk 0:02:32]} 18. Kf2 {[%clk 0:02:13]}  Rxf1+ {[%clk 0:02:31]} 19. Rxf1 {[%clk 0:02:08]}  Bxc4 {[%clk 0:02:32]} 20. Rg1 {[%clk 0:02:08]}  e5 {[%clk 0:02:27]} 21. Nd1 {[%clk 0:02:03]}  Be6 {[%clk 0:02:24]} 22. h4 {[%clk 0:02:02]}  Nf8 {[%clk 0:02:23]} 23. Ne3 {[%clk 0:01:57]}  Ng6 {[%clk 0:02:23]} 24. Ng2 {[%clk 0:01:54]}  a5 {[%clk 0:02:15]} 25. Kg3 {[%clk 0:01:51]}  Kc7 {[%clk 0:02:12]} 26. Rd1 {[%clk 0:01:50]}  Nd7 {[%clk 0:02:07]} 27. Ne3 {[%clk 0:01:38]}  Nf4 {[%clk 0:02:00]} 28. Ng2 {[%clk 0:01:30]}  Nxg2 {[%clk 0:01:55]} 29. Kxg2 {[%clk 0:01:30]}  Nf8 {[%clk 0:01:55]} 30. Kf2 {[%clk 0:01:27]}  Ng6 {[%clk 0:01:55]} 31. Rg1 {[%clk 0:01:27]}  Nxh4 {[%clk 0:01:41]} 32. Rg5 {[%clk 0:01:27]}  Ng6 {[%clk 0:01:42]} 33. Rxh5 {[%clk 0:01:27]}  Kd6 {[%clk 0:01:40]} 34. Ke3 {[%clk 0:01:20]}  b6 {[%clk 0:01:30]} 35. Rg5 {[%clk 0:01:14]}  Nf8 {[%clk 0:01:09]} 36. Rg8 {[%clk 0:01:13]}  Nd7 {[%clk 0:01:10]} 37. Rd8 {[%clk 0:01:07]}  Kc5 {[%clk 0:01:09]} 38. Rc8 {[%clk 0:01:06]}  Kd6 {[%clk 0:00:57]} 39. Rd8 {[%clk 0:01:06]}  Kc7 {[%clk 0:00:57]} 40. Rh8 {[%clk 0:01:01]}  Nc5 {[%clk 0:00:57]} 41. b3 {[%clk 0:00:56]}  Nd7 {[%clk 0:00:54]} 42. Rh6 {[%clk 0:00:53]}  Kd6 {[%clk 0:00:54]} 43. Kd3 {[%clk 0:00:53]}  Nc5+ {[%clk 0:00:44]} 44. Kc3 {[%clk 0:00:49]}  Kc7 {[%clk 0:00:38]} 45. Rh5 {[%clk 0:00:48]}  Nd7 {[%clk 0:00:38]} 46. Rh8 {[%clk 0:00:48]}  Kb7 {[%clk 0:00:31]} 47. Rh5 {[%clk 0:00:40]}  Ka6 {[%clk 0:00:28]} 48. Rh8 {[%clk 0:00:38]}  b5 {[%clk 0:00:28]} 49. Ra8+ {[%clk 0:00:38]}  Kb6 {[%clk 0:00:26]} 50. axb5 {[%clk 0:00:32]}  cxb5 {[%clk 0:00:27]} 51. Rd8 {[%clk 0:00:29]}  Nc5 {[%clk 0:00:16]} 52. Rb8+ {[%clk 0:00:26]}  Kc6 {[%clk 0:00:15]} 53. Ra8 {[%clk 0:00:26]}  Nb7 {[%clk 0:00:13]} 54. Ra6+ {[%clk 0:00:20]}  Kc5 {[%clk 0:00:13]} 55. Ra8 {[%clk 0:00:18]}  Kb6 {[%clk 0:00:13]} 56. Re8 {[%clk 0:00:16]}  Nd6 {[%clk 0:00:10]} 57. Rd8 {[%clk 0:00:17]}  b4+ {[%clk 0:00:09]} 58. Kd3 {[%clk 0:00:16]}  Nb5 {[%clk 0:00:10]} 59. Rb8+ {[%clk 0:00:16]}  Kc6 {[%clk 0:00:08]} 60. Ra8 {[%clk 0:00:16]}  Nd4 {[%clk 0:00:07]} 61. f4 {[%clk 0:00:12]}  Kb6 {[%clk 0:00:04]} 62. f5 {[%clk 0:00:09]}  Bd7 {[%clk 0:00:05]} 63. Rf8 {[%clk 0:00:09]}  Bb5+ {[%clk 0:00:05]} 64. Kd2 {[%clk 0:00:08]}  Bc6 {[%clk 0:00:06]} 65. Rxf7 {[%clk 0:00:07]}  Bxe4 {[%clk 0:00:06]} 66. f6 {[%clk 0:00:08]}  Bxc2 {[%clk 0:00:03]} 67. Re7 {[%clk 0:00:06]}  Bxb3 {[%clk 0:00:04]} 68. f7 {[%clk 0:00:04]}  Bxf7 {[%clk 0:00:04]} 69. Rxf7 {[%clk 0:00:05]}  Kc5 {[%clk 0:00:05]} 70. Kd3 {[%clk 0:00:05]}  a4 {[%clk 0:00:05]} 71. Ra7 {[%clk 0:00:04]}  a3 {[%clk 0:00:04]} 72. Rc7+ {[%clk 0:00:03]}  Kb5 {[%clk 0:00:05]} 73. Rb7+ {[%clk 0:00:02]}  Kc5 {[%clk 0:00:05]} 74. Rc7+ {[%clk 0:00:02]}  Nc6 {[%clk 0:00:06]} 75. Kc2 {[%clk 0:00:01]}  e4 {[%clk 0:00:05]} 76. Kb3 {[%clk 0:00:01]}  e3 {[%clk 0:00:05]} 77. Rh7 {[%clk 0:00:01]}  e2 {[%clk 0:00:06]} 78. Rh5+ {[%clk 0:00:01]}  Kd4 {[%clk 0:00:06]} 79. Rh1 {[%clk 0:00:02]}  Kd3 {[%clk 0:00:06]} 80. Rh3+ {[%clk 0:00:01]}  Kd2 {[%clk 0:00:07]} 81. Rh2 {[%clk 0:00:02]}  Kd1 {[%clk 0:00:07]} 82. Rh5 {[%clk 0:00:02]}  e1=Q {[%clk 0:00:08]} 83. Rc5 {[%clk 0:00:02]}  Qe3+ {[%clk 0:00:07]} 84. Ka4 {[%clk 0:00:02]}  Qxc5 {[%clk 0:00:07]} 85. Kb3 {[%clk 0:00:02]}  Qc2# {[%clk 0:00:08]} 0-1


[Site "https://www.chess.com"]

[Event "Titled Tuesday Blitz June 28 Late 2022"]
[White "Diaz, Fernando"]
[Black "Colpe, Malte"]
[WhiteFideId "3701255"]
[BlackFideId "24623075"]
[WhiteElo "1934"]
[BlackElo "2328"]
[Result "1-0"]
[Round "09"]
[TimeControl "180+1"]
[Date "2022.06.29"]
[WhiteClock "0:00:04"]
[BlackClock "0:00:02"]

1. e4 {[%clk 0:02:48]}  e5 {[%clk 0:02:57]} 2. Nf3 {[%clk 0:02:46]}  Nc6 {[%clk 0:02:57]} 3. Bc4 {[%clk 0:02:47]}  Nf6 {[%clk 0:02:57]} 4. Ng5 {[%clk 0:02:47]}  d5 {[%clk 0:02:57]} 5. exd5 {[%clk 0:02:48]}  Nd4 {[%clk 0:02:58]} 6. c3 {[%clk 0:02:47]}  b5 {[%clk 0:02:57]} 7. Bf1 {[%clk 0:02:48]}  Nxd5 {[%clk 0:02:56]} 8. d3 {[%clk 0:02:48]}  Ne6 {[%clk 0:02:49]} 9. Nf3 {[%clk 0:02:49]}  f6 {[%clk 0:02:46]} 10. d4 {[%clk 0:02:44]}  e4 {[%clk 0:02:35]} 11. Bxb5+ {[%clk 0:02:37]}  Bd7 {[%clk 0:02:36]} 12. Bxd7+ {[%clk 0:02:34]}  Qxd7 {[%clk 0:02:37]} 13. Nh4 {[%clk 0:02:31]}  Nef4 {[%clk 0:02:31]} 14. Bxf4 {[%clk 0:01:44]}  Nxf4 {[%clk 0:02:32]} 15. O-O {[%clk 0:01:44]}  g5 {[%clk 0:02:24]} 16. Re1 {[%clk 0:01:37]}  f5 {[%clk 0:01:37]} 17. Nxf5 {[%clk 0:01:19]}  Qxf5 {[%clk 0:01:36]} 18. Nd2 {[%clk 0:01:19]}  Bd6 {[%clk 0:01:22]} 19. Qa4+ {[%clk 0:01:14]}  Kf7 {[%clk 0:01:21]} 20. Nxe4 {[%clk 0:01:14]}  Rhe8 {[%clk 0:01:15]} 21. Qc6 {[%clk 0:01:10]}  Qg4 {[%clk 0:00:50]} 22. g3 {[%clk 0:00:40]}  Rad8 {[%clk 0:00:28]} 23. f3 {[%clk 0:00:30]}  Nh3+ {[%clk 0:00:15]} 24. Kg2 {[%clk 0:00:28]}  Nf4+ {[%clk 0:00:13]} 25. Kg1 {[%clk 0:00:23]}  Nh3+ {[%clk 0:00:11]} 26. Kg2 {[%clk 0:00:16]}  Nf4+ {[%clk 0:00:05]} 27. Kf2 {[%clk 0:00:17]}  Nh3+ {[%clk 0:00:04]} 28. Ke2 {[%clk 0:00:13]}  Qf5 {[%clk 0:00:04]} 29. Kd2 {[%clk 0:00:11]}  Kg7 {[%clk 0:00:02]} 30. Rf1 {[%clk 0:00:09]}  g4 {[%clk 0:00:02]} 31. Rae1 {[%clk 0:00:06]}  gxf3 {[%clk 0:00:02]} 32. Nxd6 {[%clk 0:00:04]} 1-0


[Site "https://www.chess.com"]

[Event "Titled Tuesday Blitz June 28 Late 2022"]
[White "Flynn, Jacob"]
[Black "Romanchuk, Viktor"]
[WhiteFideId "2509393"]
[BlackFideId "14109271"]
[WhiteElo "1896"]
[BlackElo "2242"]
[Result "1-0"]
[Round "09"]
[TimeControl "180+1"]
[Date "2022.06.29"]
[WhiteClock "0:00:30"]
[BlackClock "0:00:12"]

1. d4 {[%clk 0:03:00]}  d5 {[%clk 0:02:59]} 2. c4 {[%clk 0:03:00]}  c6 {[%clk 0:02:59]} 3. Nf3 {[%clk 0:02:59]}  Nf6 {[%clk 0:02:59]} 4. Qc2 {[%clk 0:03:00]}  dxc4 {[%clk 0:02:59]} 5. Qxc4 {[%clk 0:02:59]}  Bf5 {[%clk 0:03:00]} 6. g3 {[%clk 0:02:59]}  e6 {[%clk 0:03:00]} 7. Bg2 {[%clk 0:02:59]}  Nbd7 {[%clk 0:03:00]} 8. O-O {[%clk 0:03:00]}  Be7 {[%clk 0:03:01]} 9. Nc3 {[%clk 0:03:00]}  O-O {[%clk 0:03:02]} 10. Re1 {[%clk 0:03:00]}  Ne4 {[%clk 0:03:02]} 11. Nd2 {[%clk 0:02:57]}  Nb6 {[%clk 0:02:59]} 12. Qb3 {[%clk 0:02:53]}  Nxd2 {[%clk 0:02:59]} 13. Bxd2 {[%clk 0:02:48]}  Qxd4 {[%clk 0:02:59]} 14. Be3 {[%clk 0:02:38]}  Qc4 {[%clk 0:02:49]} 15. Qd1 {[%clk 0:02:38]}  Rfd8 {[%clk 0:02:46]} 16. Qc1 {[%clk 0:02:37]}  Bf6 {[%clk 0:02:40]} 17. h3 {[%clk 0:02:26]}  h6 {[%clk 0:02:39]} 18. g4 {[%clk 0:02:27]}  Bg6 {[%clk 0:02:39]} 19. Bf4 {[%clk 0:02:21]}  Rd7 {[%clk 0:02:24]} 20. Bf1 {[%clk 0:02:21]}  Rad8 {[%clk 0:02:19]} 21. e4 {[%clk 0:02:21]}  Qc5 {[%clk 0:02:08]} 22. Be3 {[%clk 0:02:21]}  Bd4 {[%clk 0:02:06]} 23. a4 {[%clk 0:02:12]}  Bxe3 {[%clk 0:01:41]} 24. Qxe3 {[%clk 0:02:12]}  Qxe3 {[%clk 0:01:40]} 25. Rxe3 {[%clk 0:02:13]}  Rd2 {[%clk 0:01:37]} 26. a5 {[%clk 0:02:11]}  Nd7 {[%clk 0:01:33]} 27. f4 {[%clk 0:02:04]}  f6 {[%clk 0:01:31]} 28. Bc4 {[%clk 0:01:54]}  Bf7 {[%clk 0:01:27]} 29. Na4 {[%clk 0:01:48]}  e5 {[%clk 0:01:16]} 30. Bxf7+ {[%clk 0:01:48]}  Kxf7 {[%clk 0:01:17]} 31. f5 {[%clk 0:01:47]}  Ke7 {[%clk 0:01:17]} 32. Rb3 {[%clk 0:01:47]}  Rb8 {[%clk 0:01:12]} 33. Rc1 {[%clk 0:01:43]}  Rd4 {[%clk 0:01:09]} 34. Nc5 {[%clk 0:01:35]}  Nxc5 {[%clk 0:01:06]} 35. Rxc5 {[%clk 0:01:36]}  Kd6 {[%clk 0:01:07]} 36. Rc2 {[%clk 0:01:27]}  Rxe4 {[%clk 0:01:06]} 37. Kf2 {[%clk 0:01:27]}  Ra4 {[%clk 0:00:57]} 38. Rd3+ {[%clk 0:01:26]}  Rd4 {[%clk 0:00:57]} 39. Rb3 {[%clk 0:01:24]}  Kc7 {[%clk 0:00:51]} 40. Rbc3 {[%clk 0:01:22]}  a6 {[%clk 0:00:49]} 41. Ke3 {[%clk 0:01:19]}  Rbd8 {[%clk 0:00:49]} 42. Rb3 {[%clk 0:01:18]}  R8d5 {[%clk 0:00:49]} 43. Ra3 {[%clk 0:01:17]}  Rd1 {[%clk 0:00:46]} 44. Rg2 {[%clk 0:01:16]}  Rh1 {[%clk 0:00:43]} 45. Ke2 {[%clk 0:01:11]}  Rb5 {[%clk 0:00:41]} 46. Rgg3 {[%clk 0:00:47]}  Rxb2+ {[%clk 0:00:39]} 47. Kd3 {[%clk 0:00:48]}  Rbh2 {[%clk 0:00:28]} 48. Kc4 {[%clk 0:00:46]}  Rc1+ {[%clk 0:00:27]} 49. Kb4 {[%clk 0:00:45]}  Rb2+ {[%clk 0:00:26]} 50. Rab3 {[%clk 0:00:43]}  Rxb3+ {[%clk 0:00:25]} 51. Kxb3 {[%clk 0:00:44]}  c5 {[%clk 0:00:22]} 52. h4 {[%clk 0:00:44]}  Rh1 {[%clk 0:00:15]} 53. g5 {[%clk 0:00:43]}  hxg5 {[%clk 0:00:14]} 54. hxg5 {[%clk 0:00:43]}  Rf1 {[%clk 0:00:15]} 55. gxf6 {[%clk 0:00:41]}  gxf6 {[%clk 0:00:16]} 56. Rg7+ {[%clk 0:00:41]}  Kc6 {[%clk 0:00:16]} 57. Re7 {[%clk 0:00:37]}  Rxf5 {[%clk 0:00:16]} 58. Re6+ {[%clk 0:00:36]}  Kb5 {[%clk 0:00:16]} 59. Rb6+ {[%clk 0:00:35]}  Kxa5 {[%clk 0:00:16]} 60. Rxb7 {[%clk 0:00:35]}  Rf4 {[%clk 0:00:16]} 61. Kc3 {[%clk 0:00:32]}  f5 {[%clk 0:00:15]} 62. Rb1 {[%clk 0:00:30]}  e4 {[%clk 0:00:14]} 63. Kc4 {[%clk 0:00:30]}  Ka4 {[%clk 0:00:12]} 64. Ra1# {[%clk 0:00:30]} 1-0


[Site "https://www.chess.com"]

[Event "Titled Tuesday Blitz June 28 Late 2022"]
[White "Gallegos Diaz, Carlos Alberto"]
[Black "Sargsyan, Anna M."]
[WhiteFideId "3900886"]
[BlackFideId "13308130"]
[WhiteElo "2362"]
[BlackElo "2271"]
[Result "0-1"]
[Round "09"]
[TimeControl "180+1"]
[Date "2022.06.29"]
[WhiteClock "0:00:12"]
[BlackClock "0:00:15"]

1. e4 {[%clk 0:02:55]}  c6 {[%clk 0:02:59]} 2. Nf3 {[%clk 0:02:52]}  d5 {[%clk 0:03:00]} 3. d3 {[%clk 0:02:52]}  Bg4 {[%clk 0:03:00]} 4. Nbd2 {[%clk 0:02:52]}  g6 {[%clk 0:03:00]} 5. Be2 {[%clk 0:02:52]}  Bg7 {[%clk 0:03:00]} 6. O-O {[%clk 0:02:52]}  e6 {[%clk 0:03:00]} 7. Re1 {[%clk 0:02:51]}  Ne7 {[%clk 0:03:01]} 8. c3 {[%clk 0:02:52]}  O-O {[%clk 0:03:01]} 9. h3 {[%clk 0:02:50]}  Bxf3 {[%clk 0:03:00]} 10. Nxf3 {[%clk 0:02:51]}  Nd7 {[%clk 0:03:00]} 11. Qc2 {[%clk 0:02:50]}  Qc7 {[%clk 0:02:55]} 12. Bf1 {[%clk 0:02:47]}  Rad8 {[%clk 0:02:54]} 13. Bg5 {[%clk 0:02:46]}  Rfe8 {[%clk 0:02:54]} 14. Bh4 {[%clk 0:02:44]}  h6 {[%clk 0:02:42]} 15. Bg3 {[%clk 0:02:43]}  Qb6 {[%clk 0:02:42]} 16. exd5 {[%clk 0:02:36]}  Nxd5 {[%clk 0:02:41]} 17. a3 {[%clk 0:02:24]}  Nc5 {[%clk 0:02:28]} 18. Rad1 {[%clk 0:02:23]}  a5 {[%clk 0:02:12]} 19. d4 {[%clk 0:02:19]}  Nd7 {[%clk 0:02:06]} 20. c4 {[%clk 0:02:08]}  Ne7 {[%clk 0:02:04]} 21. c5 {[%clk 0:02:00]}  Qa7 {[%clk 0:02:01]} 22. b4 {[%clk 0:02:00]}  Nf5 {[%clk 0:01:57]} 23. Bh2 {[%clk 0:01:53]}  Nf6 {[%clk 0:01:53]} 24. b5 {[%clk 0:01:45]}  Nd5 {[%clk 0:01:47]} 25. Ne5 {[%clk 0:01:31]}  Qa8 {[%clk 0:01:32]} 26. Nf3 {[%clk 0:01:10]}  Rc8 {[%clk 0:01:07]} 27. g4 {[%clk 0:01:09]}  Nfe7 {[%clk 0:01:03]} 28. b6 {[%clk 0:01:06]}  g5 {[%clk 0:01:00]} 29. Ne5 {[%clk 0:01:05]}  Rcd8 {[%clk 0:00:57]} 30. Bd3 {[%clk 0:01:03]}  Nf6 {[%clk 0:00:51]} 31. Nc4 {[%clk 0:00:58]}  Rxd4 {[%clk 0:00:44]} 32. Nd6 {[%clk 0:00:56]}  Rd8 {[%clk 0:00:43]} 33. Be5 {[%clk 0:00:56]}  Rd5 {[%clk 0:00:42]} 34. Bxf6 {[%clk 0:00:33]}  Bxf6 {[%clk 0:00:43]} 35. Bc4 {[%clk 0:00:31]}  Rxd1 {[%clk 0:00:33]} 36. Rxd1 {[%clk 0:00:32]}  a4 {[%clk 0:00:30]} 37. Kg2 {[%clk 0:00:23]}  Nd5 {[%clk 0:00:22]} 38. Bxd5 {[%clk 0:00:19]}  cxd5 {[%clk 0:00:21]} 39. Nb5 {[%clk 0:00:17]}  Qa5 {[%clk 0:00:20]} 40. Nc7 {[%clk 0:00:17]}  Qc3 {[%clk 0:00:16]} 41. Qe2 {[%clk 0:00:14]}  Qxc5 {[%clk 0:00:15]} 42. Nb5 {[%clk 0:00:13]}  Qxb6 {[%clk 0:00:15]} 43. Nd4 {[%clk 0:00:11]}  Bxd4 {[%clk 0:00:15]} 44. Rxd4 {[%clk 0:00:12]}  Qxd4 {[%clk 0:00:15]} 0-1


[Site "https://www.chess.com"]

[Event "Titled Tuesday Blitz June 28 Late 2022"]
[White "Goncalves, Davi Sulzbacher"]
[Black "Schekachikhin, Maksim"]
[WhiteFideId "2154510"]
[BlackFideId "24177830"]
[WhiteElo "2107"]
[BlackElo "2239"]
[Result "0-1"]
[Round "09"]
[TimeControl "180+1"]
[Date "2022.06.28"]
[WhiteClock "0:00:15"]
[BlackClock "0:00:30"]

1. d4 {[%clk 0:03:00]}  d5 {[%clk 0:02:59]} 2. c4 {[%clk 0:03:00]}  c6 {[%clk 0:02:59]} 3. Nf3 {[%clk 0:03:00]}  Nf6 {[%clk 0:02:59]} 4. Nc3 {[%clk 0:02:57]}  dxc4 {[%clk 0:02:59]} 5. a4 {[%clk 0:02:57]}  e6 {[%clk 0:02:59]} 6. e3 {[%clk 0:02:49]}  c5 {[%clk 0:02:59]} 7. Bxc4 {[%clk 0:02:48]}  Nc6 {[%clk 0:02:59]} 8. O-O {[%clk 0:02:48]}  Be7 {[%clk 0:02:59]} 9. dxc5 {[%clk 0:02:37]}  Qxd1 {[%clk 0:03:00]} 10. Rxd1 {[%clk 0:02:37]}  Bxc5 {[%clk 0:03:01]} 11. Nb5 {[%clk 0:02:28]}  Ke7 {[%clk 0:02:54]} 12. b3 {[%clk 0:02:24]}  Bd7 {[%clk 0:02:51]} 13. Bb2 {[%clk 0:02:19]}  a6 {[%clk 0:02:45]} 14. Nbd4 {[%clk 0:02:18]}  Rad8 {[%clk 0:02:44]} 15. Rac1 {[%clk 0:02:16]}  Nxd4 {[%clk 0:02:41]} 16. Nxd4 {[%clk 0:02:16]}  Bb4 {[%clk 0:02:34]} 17. Nc2 {[%clk 0:02:03]}  Bd6 {[%clk 0:02:29]} 18. Nd4 {[%clk 0:01:35]}  Rc8 {[%clk 0:02:25]} 19. f3 {[%clk 0:01:29]}  Rhd8 {[%clk 0:02:24]} 20. Kf2 {[%clk 0:01:27]}  h6 {[%clk 0:02:18]} 21. e4 {[%clk 0:01:13]}  Bc5 {[%clk 0:02:04]} 22. Ke2 {[%clk 0:01:13]}  Be8 {[%clk 0:01:57]} 23. e5 {[%clk 0:00:51]}  Nd7 {[%clk 0:01:57]} 24. f4 {[%clk 0:00:49]}  Nb6 {[%clk 0:01:53]} 25. Bxe6 {[%clk 0:00:34]}  Bxd4 {[%clk 0:01:31]} 26. Rxc8 {[%clk 0:00:20]}  Nxc8 {[%clk 0:01:18]} 27. Rxd4 {[%clk 0:00:13]}  Rxd4 {[%clk 0:01:12]} 28. Bxc8 {[%clk 0:00:14]}  Re4+ {[%clk 0:00:56]} 29. Kd3 {[%clk 0:00:09]}  Bc6 {[%clk 0:00:55]} 30. g3 {[%clk 0:00:07]}  Re1 {[%clk 0:00:52]} 31. Bg4 {[%clk 0:00:04]}  g6 {[%clk 0:00:49]} 32. Ba3+ {[%clk 0:00:04]}  Ke8 {[%clk 0:00:49]} 33. Be2 {[%clk 0:00:02]}  Bd5 {[%clk 0:00:44]} 34. b4 {[%clk 0:00:02]}  Bc4+ {[%clk 0:00:44]} 35. Kxc4 {[%clk 0:00:02]}  Rxe2 {[%clk 0:00:45]} 36. b5 {[%clk 0:00:02]}  axb5+ {[%clk 0:00:42]} 37. axb5 {[%clk 0:00:03]}  Rxh2 {[%clk 0:00:42]} 38. Kd5 {[%clk 0:00:03]}  Kd7 {[%clk 0:00:42]} 39. Bd6 {[%clk 0:00:02]}  h5 {[%clk 0:00:40]} 40. Ke4 {[%clk 0:00:02]}  Rb2 {[%clk 0:00:38]} 41. f5 {[%clk 0:00:02]}  Rxb5 {[%clk 0:00:35]} 42. Ba3 {[%clk 0:00:01]}  Ra5 {[%clk 0:00:33]} 43. e6+ {[%clk 0:00:01]}  fxe6 {[%clk 0:00:31]} 44. Bb4 {[%clk 0:00:01]}  Rxf5 {[%clk 0:00:30]} 45. g4 {[%clk 0:00:01]}  hxg4 {[%clk 0:00:30]} 46. Bd2 {[%clk 0:00:02]}  g3 {[%clk 0:00:30]} 47. Be3 {[%clk 0:00:03]}  g2 {[%clk 0:00:30]} 48. Bg1 {[%clk 0:00:04]}  Rf1 {[%clk 0:00:30]} 49. Bh2 {[%clk 0:00:05]}  g1=Q {[%clk 0:00:29]} 50. Bxg1 {[%clk 0:00:05]}  Rxg1 {[%clk 0:00:29]} 51. Kf3 {[%clk 0:00:06]}  b5 {[%clk 0:00:29]} 52. Kf2 {[%clk 0:00:07]}  Rc1 {[%clk 0:00:29]} 53. Ke3 {[%clk 0:00:08]}  b4 {[%clk 0:00:30]} 54. Kd2 {[%clk 0:00:08]}  Rc6 {[%clk 0:00:30]} 55. Kd3 {[%clk 0:00:09]}  b3 {[%clk 0:00:31]} 56. Kd4 {[%clk 0:00:10]}  b2 {[%clk 0:00:31]} 57. Kd3 {[%clk 0:00:11]}  b1=Q+ {[%clk 0:00:30]} 58. Kd4 {[%clk 0:00:12]}  Qb4+ {[%clk 0:00:29]} 59. Ke3 {[%clk 0:00:13]}  Rc3+ {[%clk 0:00:29]} 60. Kd2 {[%clk 0:00:14]}  Qb2+ {[%clk 0:00:30]} 61. Kd1 {[%clk 0:00:15]}  Rc1# {[%clk 0:00:30]} 0-1


[Site "https://www.chess.com"]

[Event "Titled Tuesday Blitz June 28 Late 2022"]
[White "Hakobyan, Aram"]
[Black "Dubov, Daniil"]
[WhiteFideId "13306677"]
[BlackFideId "24126055"]
[WhiteElo "2557"]
[BlackElo "2791"]
[Result "1-0"]
[Round "09"]
[TimeControl "180+1"]
[Date "2022.06.28"]
[WhiteClock "0:01:12"]
[BlackClock "0:00:02"]

1. e4 {[%clk 0:03:00]}  e5 {[%clk 0:02:59]} 2. Nf3 {[%clk 0:03:01]}  Nc6 {[%clk 0:03:00]} 3. Bb5 {[%clk 0:03:01]}  a6 {[%clk 0:02:59]} 4. Ba4 {[%clk 0:03:00]}  Nf6 {[%clk 0:03:00]} 5. O-O {[%clk 0:03:00]}  Be7 {[%clk 0:02:59]} 6. Bxc6 {[%clk 0:02:59]}  dxc6 {[%clk 0:02:59]} 7. d3 {[%clk 0:03:00]}  Qd6 {[%clk 0:02:58]} 8. Nbd2 {[%clk 0:02:59]}  Be6 {[%clk 0:02:56]} 9. b3 {[%clk 0:02:59]}  Nd7 {[%clk 0:02:51]} 10. Bb2 {[%clk 0:02:58]}  O-O {[%clk 0:02:50]} 11. a4 {[%clk 0:02:53]}  a5 {[%clk 0:02:48]} 12. Kh1 {[%clk 0:02:45]}  b6 {[%clk 0:02:46]} 13. Nc4 {[%clk 0:02:44]}  Bxc4 {[%clk 0:02:45]} 14. bxc4 {[%clk 0:02:45]}  Qe6 {[%clk 0:02:43]} 15. Qe2 {[%clk 0:02:41]}  Rfe8 {[%clk 0:02:38]} 16. Rg1 {[%clk 0:02:39]}  Rad8 {[%clk 0:02:37]} 17. g4 {[%clk 0:02:38]}  Kh8 {[%clk 0:02:28]} 18. Rg3 {[%clk 0:02:38]}  Bd6 {[%clk 0:02:19]} 19. Nh4 {[%clk 0:02:36]}  Nf8 {[%clk 0:02:18]} 20. Nf5 {[%clk 0:02:34]}  Ng6 {[%clk 0:02:17]} 21. Qf3 {[%clk 0:02:27]}  Be7 {[%clk 0:02:12]} 22. g5 {[%clk 0:02:24]}  f6 {[%clk 0:01:46]} 23. h4 {[%clk 0:02:24]}  fxg5 {[%clk 0:01:29]} 24. hxg5 {[%clk 0:02:25]}  Kg8 {[%clk 0:01:28]} 25. Rag1 {[%clk 0:02:19]}  Rf8 {[%clk 0:01:27]} 26. Rh3 {[%clk 0:02:02]}  Nf4 {[%clk 0:01:19]} 27. Qg4 {[%clk 0:01:57]}  Rf7 {[%clk 0:01:03]} 28. Rf3 {[%clk 0:01:33]}  Kh8 {[%clk 0:00:49]} 29. Nh6 {[%clk 0:01:27]}  gxh6 {[%clk 0:00:03]} 30. Qxe6 {[%clk 0:01:26]}  Nxe6 {[%clk 0:00:04]} 31. Rxf7 {[%clk 0:01:21]}  Bxg5 {[%clk 0:00:05]} 32. f4 {[%clk 0:01:11]}  Kg8 {[%clk 0:00:01]} 33. Rf6 {[%clk 0:01:11]}  exf4 {[%clk 0:00:01]} 34. Rxe6 {[%clk 0:01:11]}  Kf7 {[%clk 0:00:01]} 35. Rxc6 {[%clk 0:01:11]}  Rd7 {[%clk 0:00:02]} 36. Be5 {[%clk 0:01:11]}  f3 {[%clk 0:00:02]} 37. Rf1 {[%clk 0:01:11]}  Ke7 {[%clk 0:00:02]} 38. Rxf3 {[%clk 0:01:12]} 1-0


[Site "https://www.chess.com"]